Cogmind - Beta 16.1 @@@ ROGUE MODE // 2026.03.12 @ 19:44:26 Player: IDRpheonix Result: Destroyed by L-31 Rogue with Katana Performance ------------- Evolutions (2) 1000 Regions Visited (5) 1000 Robots Destroyed (15) 75 Value Destroyed (347) 347 Prototype IDs (0) 0 Alien Tech Used (0) 0 Bonus (0) 0 TOTAL SCORE: 2422 Bonus ------- None Cogmind --------- Core Integrity 0/550 Matter 104/300 Energy 25/100 System Corruption 0% Temperature Cool (0) Movement Treading (160) Location -8/Materials Parts ------- > --- POWER (1) -------- (None) > --- PROPULSION (3) --- Light Treads > --- UTILITY (4) ------ Utility Shielding Shield Generator > --- WEAPON (3) ------- Heavy Particle Cannon > --- INVENTORY (5) ---- Power Shielding Utility Shielding Hacking Suite Peak State ------------ > --- POWER ------------ Light Ion Engine > --- PROPULSION ------- Light Treads > --- UTILITY ---------- Heat Sink Small Storage Unit Propulsion Shielding Utility Shielding > --- WEAPON ----------- EM Pulse Cannon Beam Cannon Improved Light Cannon > --- INVENTORY -------- Power Shielding Utility Shielding Shield Generator Hacking Suite Rocket Launcher [Rating: 12] Favorites ----------- Power Light Ion Engine Engine Light Ion Engine Propulsion Flight Unit Treads Light Treads Leg Aluminum Leg Wheel Compact Wheel Flight Unit Flight Unit Utility Small Storage Unit Device Heat Sink Storage Small Storage Unit Protection Utility Shielding Weapon Medium Laser Energy Gun Medium Laser Energy Cannon Beam Cannon Ballistic Gun Light Assault Rifle Ballistic Cannon Improved Light Cannon Launcher Rocket Launcher Build | -11 -10 -10 -9 -9 -8 ------- Run | Yrd Mat Min Mat Min Mat Slots Evolved 4 | . . . 2 . 2 Power . | . . . . . . Propulsion 1 | . . . 1 . . Utility 2 | . . . 1 . 1 Weapon 1 | . . . . . 1 Parts Attached 30 | 6 8 . 5 1 10 Power 5 | 1 1 . 1 . 2 Engine 5 | 1 1 . 1 . 2 Core . | . . . . . . Reactor . | . . . . . . Propulsion 10 | 2 3 . 2 . 3 Treads 2 | . . . . . 2 Leg 2 | 2 . . . . . Wheel 1 | . . . . . 1 Hover . | . . . . . . Flight 5 | . 3 . 2 . . Utility 7 | 1 3 . 1 . 2 Device 2 | . 1 . . . 1 Storage 2 | 1 1 . . . . Processor . | . . . . . . Hackware . | . . . . . . Protection 3 | . 1 . 1 . 1 Artifact . | . . . . . . Weapon 8 | 2 1 . 1 1 3 Energy Gun 2 | 2 . . . . . Energy Cannon 3 | . . . 1 . 2 Ballistic Gun 1 | . 1 . . . . Ballistic Cannon 1 | . . . . . 1 Launcher 1 | . . . . 1 . Special Weapon . | . . . . . . Impact Weapon . | . . . . . . Slashing Weapon . | . . . . . . Piercing Weapon . | . . . . . . Special Melee Weapon . | . . . . . . Unidentified Prototypes . | . . . . . . Parts Lost 19 | . . . 5 2 12 Power 4 | . . . 1 1 2 Propulsion 5 | . . . 1 1 3 Utility 3 | . . . . . 3 Weapon 7 | . . . 3 . 4 Highest Loss Streak 11 | . . . 3 2 11 To Critical Strikes . | . . . . . . Average Backups 4 | . 2 5 5 8 4 Power . | . . 1 . . . Propulsion . | . . 1 . . . Utility 2 | . . 2 3 5 3 Weapon . | . . 1 1 2 . Tool/Special . | . . . . . . Unused Backups 3 | . 1 . . . 2 Power . | . . . . . . Propulsion 1 | . 1 . . . . Utility 2 | . . . . . 2 Weapon . | . . . . . . Tool/Special . | . . . . . . Average Slot Usage (%) 80 | . 88 100 82 45 58 Engine 9 | . 14 14 11 7 1 Leg 2 | . 10 . . . . Flight 19 | . 17 28 32 18 3 Device 4 | . 4 2 . 7 7 Storage 9 | . 6 11 11 11 7 Protection 11 | . 5 14 11 . 14 Energy Gun 9 | . 19 14 8 . . Energy Cannon 2 | . . . 1 . 9 Ballistic Gun 7 | . 8 14 7 . . Ballistic Cannon 1 | . . . . . 6 Launcher 1 | . . . . . 5 Peak Build Rating 12 | 6 7 7 9 7 12 Average Rating 7 | 4 6 7 7 5 8 On Entrance 4 | . 6 7 7 5 4 Avg Prop Armor Cover (%) . | . . . . . . Naked Turns . | . . . . . . Heaviest Build 24 | 12 12 12 13 9 24 Greatest Support 20 | 20 20 8 12 8 20 Greatest Overweight (x) 6 | 3 . 1 1 2 6 Average Overweight (x) . | . . . . . 1 Largest Inventory Capacity 8 | 8 8 8 8 8 8 Average Capacity 7 | 7 6 7 8 8 7 Most Carried 8 | 1 5 6 8 8 7 Average Carried 4 | . 2 5 5 7 4 Final Capacity 8 | 8 5 8 8 8 5 Final Carried 8 | . 5 6 8 8 3 Class Distribution -------------------- 51% | Scavenger-Mutant 27% | Mutant 20% | Tank Dominant Class ---------------- Scavenger-Mutant | -10/Materials Scavenger-Mutant | -10/Mines Scavenger-Mutant | -9/Materials Mutant | -9/Mines Tank | -8/Materials Resources | -11 -10 -10 -9 -9 -8 ----------- Run | Yrd Mat Min Mat Min Mat Matter Collected 430 | 201 118 64 . . 47 Remotely . | . . . . . . Salvage Created 413 | . 110 . . . 303 Parts 28 | . 13 . . . 15 Haulers Intercepted . | . . . . . . Recyclers Shooed . | . . . . . . Parts Field Recycled . | . . . . . . Retrieved Matter . | . . . . . . Parts Self-Destructed . | . . . . . . Prevented . | . . . . . . Parts Restored . | . . . . . . Kills | -11 -10 -10 -9 -9 -8 ------- Run | Yrd Mat Min Mat Min Mat Combat Hostiles Destroyed 14 | . 6 . . . 8 Guns 6 | . 6 . . . . Cannons 5 | . . . . . 5 AOE 2 | . . . . . 2 Classes Destroyed 5 | . 1 . . . 4 Recycler 1 | . . . . . 1 Swarmer 9 | . 6 . . . 3 Grunt 2 | . . . . . 2 Duelist 1 | . . . . . 1 Sentry 2 | . . . . . 2 Best Kill Streak 7 | . 3 . . . 7 Combat Bots Only 6 | . 3 . . . 6 Max Kills in Single Turn 2 | . 1 . . . 2 Gunslinging . | . . . . . . Exploded 2 | . . . . . 2 Melee . | . . . . . . Uniques/NPCs Destroyed . | . . . . . . Combat | -11 -10 -10 -9 -9 -8 -------- Run | Yrd Mat Min Mat Min Mat Hostile Shots Fired 201 | . 29 6 43 4 119 Missed 66 | . 13 2 23 2 26 Hits 135 | . 16 4 20 2 93 Melee 2 | . . . . 1 1 Projectile 133 | . 16 4 20 1 92 Critical Strikes 6 | . . . 1 1 4 Damage Taken 2045 | . 132 48 347 43 1475 Core 656 | . 49 . 42 . 565 Absorbed by Shields 8 | . . . . . 8 Redirected to Shielding 76 | . 2 . 15 . 59 Core Remaining (%) 89 | 100 . 80 . 89 . Volleys Fired 32 | . 13 . 2 . 17 Largest 3 | . 2 . 2 . 3 Hottest 156 | . 90 . 70 . 156 Shots Fired 57 | . 21 . 4 . 32 Gun 25 | . 21 . 4 . . Cannon 27 | . . . . . 27 Launcher 5 | . . . . . 5 Special . | . . . . . . Kinetic 18 | . 6 . 2 . 10 Thermal 22 | . 8 . 2 . 12 Explosive 5 | . . . . . 5 Electromagnetic 12 | . 7 . . . 5 Robot Hit Streak 5 | . 2 . 1 . 5 Robot Miss Streak 3 | . 3 . 3 . 2 Penetration Max . | . . . . . . Secondary Targets . | . . . . . . Shots Hit Robots 25 | . 8 . 1 . 16 Core Hits 21 | . 6 . . . 15 Critical Kills 1 | . . . . . 1 Critical Parts Destroyed . | . . . . . . Critical Strikes 1 | . . . . . 1 Meltdown 1 | . . . . . 1 Melee Attacks . | . . . . . . Impact . | . . . . . . Slashing . | . . . . . . Piercing . | . . . . . . Sneak Attacks . | . . . . . . Combat Hostiles . | . . . . . . Follow-up Attacks . | . . . . . . Damage Inflicted 854 | . 102 5 9 . 738 Guns 111 | . 102 . 9 . . Cannons 345 | . . . . . 345 Explosions 393 | . . . . . 393 Melee . | . . . . . . Ramming 5 | . . 5 . . . Kinetic 190 | . 32 . 9 . 149 Thermal 180 | . 25 . . . 155 Explosive 393 | . . . . . 393 Electromagnetic 86 | . 45 . . . 41 Impact . | . . . . . . Slashing . | . . . . . . Piercing . | . . . . . . Highest Corruption . | . . . . . . Average Corruption . | . . . . . . Corruption Purged . | . . . . . . Corruption Blocked . | . . . . . . Overload Shots . | . . . . . . Overflow Damage 8 | . . . . . 8 Projectiles . | . . . . . . Explosions 8 | . . . . . 8 Melee . | . . . . . . Knockbacks 3 | . . . . . 3 Impact . | . . . . . . Kinetic 3 | . . . . . 3 Secondary . | . . . . . . Self-Inflicted Damage 70 | . . 2 . . 68 Shots 2 | . . . . . 2 Rammed 1 | . . 1 . . . Targets Rammed 1 | . . 1 . . . Kicked . | . . . . . . Crushed . | . . . . . . Highest Temperature 123 | . 60 . 36 . 123 Average Temperature 28 | . 20 . 20 . 33 Received Heat Transfer 861 | . . 24 114 6 717 Siege Activations . | . . . . . . Martial Activations . | . . . . . . Shielding Activations . | . . . . . . Robots Disrupted . | . . . . . . Combat Hostiles . | . . . . . . Robots Corrupted . | . . . . . . Combat Hostiles . | . . . . . . Parts Fried 1 | . . . . . 1 Impact Corruptions . | . . . . . . Robots Melted 1 | . . . . . 1 Combat Hostiles 1 | . . . . . 1 Parts Melted . | . . . . . . Heat Transferred 370 | . 74 . . . 296 Parts Sabotaged . | . . . . . . Parts Stolen . | . . . . . . Parts Stripped . | . . . . . . Power Chain Reactions . | . . . . . . Alert | -11 -10 -10 -9 -9 -8 ------- Run | Yrd Mat Min Mat Min Mat Maximum Alert Level 1 | . . . . . 1 Low Security (%) 98 | 100 100 100 100 100 96 Level 1 1 | . . . . . 3 Level 2 . | . . . . . . Level 3 . | . . . . . . Level 4 . | . . . . . . Level 5 . | . . . . . . High Security . | . . . . . . Max Security . | . . . . . . Peak Influence 209 | . 100 33 50 19 209 Initial 33 | . . 33 . 19 . Average 25 | . 43 3 17 9 45 Influence Increases 759 | . 185 . 165 . 409 Destroy 0b10 Robot/C 280 | . 120 . . . 160 Destroy 0b10 Robot/NC 5 | . . . . . 5 Destroy Leader 60 | . 20 . . . 40 Disable Machine 30 | . . . . . 30 Destroy Structure 39 | . . . . . 39 Partial Spotted 60 | . . . 30 . 30 Lose Combat Pursuer 285 | . 45 . 135 . 105 Influence Decreases 550 | . 100 85 115 50 200 Entered New Map 83 | . . 52 . 31 . Time Decay 312 | . 100 33 70 19 90 Lost Part 155 | . . . 45 . 110 Squads Dispatched 4 | . 2 . 1 . 1 Investigation 1 | . 1 . . . . Extermination . | . . . . . . Reinforcement 3 | . 1 . 1 . 1 Assault . | . . . . . . Garrison . | . . . . . . Intercept . | . . . . . . Searches Triggered . | . . . . . . Construction Impeded . | . . . . . . Haulers Reinforced . | . . . . . . Active Scanning Responses . | . . . . . . Cargo Convoy Interrupts . | . . . . . . Stealth | -11 -10 -10 -9 -9 -8 --------- Run | Yrd Mat Min Mat Min Mat Distress Signals 4 | . 1 . . . 3 Communications Jammed . | . . . . . . Distress Signals . | . . . . . . Times Spotted 57 | . 13 2 15 2 25 Peak Tracking Total 12 | . 5 2 9 2 12 Tactical Retreats 9 | . 2 . 4 . 3 Traps | -11 -10 -10 -9 -9 -8 ------- Run | Yrd Mat Min Mat Min Mat Traps Triggered 3 | . 1 . 2 . . Indirectly . | . . . . . . Trap Hack Attempts . | . . . . . . Triggered . | . . . . . . Disarmed . | . . . . . . Reprogrammed . | . . . . . . Reused . | . . . . . . Traps Extracted . | . . . . . . Installed . | . . . . . . Triggered . | . . . . . . Machines | -11 -10 -10 -9 -9 -8 ---------- Run | Yrd Mat Min Mat Min Mat Machines Disabled 2 | . . . . . 2 Max in Single Turn 2 | . . . . . 2 Machines Repaired . | . . . . . . Machines Dismantled . | . . . . . . Machines Sabotaged . | . . . . . . Overloaded Fab Kills . | . . . . . . Hacking | -11 -10 -10 -9 -9 -8 --------- Run | Yrd Mat Min Mat Min Mat Machines Accessed 2 | . 1 1 . . . Terminals 2 | . 1 1 . . . Fabricators . | . . . . . . Repair Stations . | . . . . . . Recycling Units . | . . . . . . Scanalyzers . | . . . . . . Garrison Access . | . . . . . . Total Hacks 2 | . 1 1 . . . Successful 2 | . 1 1 . . . Failed . | . . . . . . Catastrophic . | . . . . . . Database Lockouts . | . . . . . . Manual 1 | . 1 . . . . Terminals 2 | . 1 1 . . . Fabricators . | . . . . . . Repair Stations . | . . . . . . Recycling Units . | . . . . . . Scanalyzers . | . . . . . . Garrison Access . | . . . . . . Terminal Hacks 1 | . . 1 . . . Zone Layout 1 | . . 1 . . . Fabricator Hacks . | . . . . . . Repair Station Hacks . | . . . . . . Recycling Unit Hacks . | . . . . . . Scanalyzer . | . . . . . . Garrison Access Hacks . | . . . . . . Unauthorized Hacks 1 | . 1 . . . . Terminals 1 | . 1 . . . . Sabotage 1 | . 1 . . . . Fabricators . | . . . . . . Repair Stations . | . . . . . . Recycling Units . | . . . . . . Scanalyzers . | . . . . . . Garrison Access . | . . . . . . Data Cores Recovered . | . . . . . . Used . | . . . . . . Hacking Detections 1 | . . 1 . . . Full Trace Events . | . . . . . . Feedback Events . | . . . . . . Feedback Blocked . | . . . . . . Robot Schematics Acquired . | . . . . . . Robots Built . | . . . . . . Authchips . | . . . . . . Time . | . . . . . . Total Robot Build Rating . | . . . . . . Part Schematics Acquired . | . . . . . . Parts Built . | . . . . . . Authchips . | . . . . . . Time . | . . . . . . Total Part Build Rating . | . . . . . . Part Studies Acquired . | . . . . . . Parts Repaired . | . . . . . . Time . | . . . . . . Parts Recycled . | . . . . . . Recycled Matter . | . . . . . . Retrieved Matter . | . . . . . . Retrieved Components . | . . . . . . Parts Scanalyzed . | . . . . . . Part Schematics Acquired . | . . . . . . Parts Damaged . | . . . . . . Bothacking | -11 -10 -10 -9 -9 -8 ------------ Run | Yrd Mat Min Mat Min Mat Used RIF Installer . | . . . . . . Robots Hacked . | . . . . . . Non-combat . | . . . . . . Combat . | . . . . . . Robot Hacks Applied . | . . . . . . Relay Couplers Released . | . . . . . . Fabnet Peak Effective % . | . . . . . . Robots Rewired . | . . . . . . Allies Hacked . | . . . . . . Hacks Repelled . | . . . . . . Allies | -11 -10 -10 -9 -9 -8 -------- Run | Yrd Mat Min Mat Min Mat Total Allies . | . . . . . . Largest Group . | . . . . . . Highest-Rated Group . | . . . . . . Highest-Rated Ally . | . . . . . . Total Orders . | . . . . . . Ally Attacks . | . . . . . . Total Damage . | . . . . . . Kills . | . . . . . . Allies Corrupted . | . . . . . . Allies Melted . | . . . . . . Intel | -11 -10 -10 -9 -9 -8 ------- Run | Yrd Mat Min Mat Min Mat Active Infowar (turns) . | . . . . . . Robot Analysis Total . | . . . . . . Derelict Logs Recovered 2 | . . 2 . . . Drone Launches . | . . . . . . Drone Recoveries . | . . . . . . Exploration | -11 -10 -10 -9 -9 -8 ------------- Run | Yrd Mat Min Mat Min Mat Turns Passed 1197 | 49 222 353 178 58 337 Spaces Moved 1424 | 34 323 396 444 70 157 Core 92 | 10 . . . . 82 Treads 34 | . . . . . 34 Legs 74 | 24 50 . . . . Wheels 5 | . . . . . 5 Hover . | . . . . . . Flight 1219 | . 273 396 444 70 36 Fastest Speed 34 | 50 37 37 34 37 50 Average Speed 72 | 117 49 88 35 78 170 Slowest Speed 360 | 200 120 117 117 200 360 Overloaded Moves . | . . . . . . Propulsion Burnouts . | . . . . . . Robots Hopped 17 | . 6 3 8 . . Potential Cave-ins . | . . . . . . Cave-ins Triggered . | . . . . . . Exploration Rate (%) 33 | 3 45 91 36 14 13 Regions Visited 5 Branch Regions 2 Pre-discovered Areas 1 | . . 1 . . . Known Exits Taken 2 | . . . 1 1 . Unknown Exits Taken 3 | 1 1 1 . . . Scrap Searched 1 | . . 1 . . . Spaces Dug . | . . . . . . Terrain Destroyed 44 | . . . . . 44 Melee . | . . . . . . Projectile . | . . . . . . AOE 44 | . . . . . 44 Terrain Rammed . | . . . . . . Walls Destroyed . | . . . . . . Machines Disabled . | . . . . . . Actions | -11 -10 -10 -9 -9 -8 --------- Run | Yrd Mat Min Mat Min Mat Total 1513 | 40 355 397 455 73 193 Wait . | . . . . . . Move 1386 | 33 310 390 427 69 157 Hop 16 | . 6 2 8 . . Pick Up 19 | 1 8 2 4 1 3 Fast Attach 19 | 5 6 . 2 1 5 Attach 16 | 1 . . 6 1 8 Detach 6 | . 2 . 4 . . Swap 7 | . 5 1 . . 1 Drop 9 | . 5 1 2 1 . Fire 32 | . 13 . 2 . 17 Melee . | . . . . . . Ram 1 | . . 1 . . . Kick . | . . . . . . Crush . | . . . . . . Escape Stasis . | . . . . . . Rewire 2 | . . . . . 2 Trap . | . . . . . . Miscellaneous . | . . . . . . Route ------- -11/Scrapyard -10/Materials -10/Mines (discovered 2 exits: [*Mat x2]) -9/Materials (discovered 2 exits: Mat / *Min) -9/Mines -8/Materials History --------- Turn | Location | Event 13 | -11/Scrapyard | Discovered new exit (range 15) 50 | -11/Scrapyard | Entered Materials 51 | -10/Materials | Met a group of wandering Federalists 268 | -10/Materials | Discovered new exit (range 9) 272 | -10/Materials | Entered Mines 278 | -10/Mines | Learned location of Storage (-8) 302 | -10/Mines | Discovered new exit (range 8) 384 | -10/Mines | Learned Materials stockpile data 424 | -10/Mines | Build established: Scavenger-Mutant 553 | -10/Mines | Discovered new exit (range 5) 562 | -10/Mines | Learned 8 Materials zone layouts 625 | -10/Mines | Entered Materials 625 | -9/Materials | Evolved 2 slots: Propulsion x1, Utility x1 626 | -9/Materials | Identified exit to Mines 626 | -9/Materials | Identified exit to Materials 803 | -9/Materials | Entered Mines 815 | -9/Mines | Received a Rocket Launcher from a helpful Derelict 824 | -9/Mines | Discovered exit to Materials (range 10) 825 | -9/Mines | Met a Derelict bent on vengeance 828 | -9/Mines | Lost 3 parts (1p1n1w) 861 | -9/Mines | Entered Materials 861 | -8/Materials | Evolved 2 slots: Utility x1, Weapon x1 1135 | -8/Materials | Core integrity fell below 50% 1143 | -8/Materials | Core integrity fell below 20% 1173 | -8/Materials | Lost 11 parts (2p2n3u4w) 1198 | -8/Materials | Destroyed by L-31 Rogue with Katana Last Messages --------------- 01135_ The unstable cave ceiling collapses. 01135_ Acquired Com. Wheel. 01136_ Heat Sink destroyed. 01137_ Acquired Lgt. Ion Engine. 01139_ Critical hit (Burn: +37). 01140_ Sml. Storage Unit destroyed. 01140_ Lgt. Ion Engine destroyed. 01142_ Com. Wheel destroyed. 01142_ Critical hit (Burn: +37). 01178_ Acquired Hvy. Particle Cannon. 01183_ Attempting to rewire U-05 Engineer. 01183_ U-05 Engineer is broken beyond repair. 01184_ Attempting to rewire U-05 Engineer. 01184_ U-05 Engineer is broken beyond repair. 01185_ Y-45 Defender destroyed. 01190_ Acquired Lgt. Treads. 01192_ C-30 ARC bursts open, deploying its payload. 01192_ L-31 Rogue unfolds itself. 01192_ G-47 Trooper unfolds itself. 01194_ Critical hit (Burn: +37). Map ----- +----------------------------------------------------+ | | | | | | | | | | | | | | | | | | | | | | | | | | | | | | | | | | | | | | | ???????????????###########???????????????? | | ???????????????# !#?????#######???? | | ???????????????# #?????# #???? | | ???????????????# ####### ##### | | ???????????????# + | | ???????????????# ] ####### ##### | | ???????????????#!@u #?????# ##### | | ???????????????#! l #??##### #### | | ???????????????# g #??# #??# | | ???????????????#####/#####??# !#### | | ?????????????????? %%#?????# " + !!/ | | ???????????????? #?????# #### !!/ | | ?????????????? #?????# #??# !/ | | ?????????????##### #?????### ###??##### | | ?????????????????##+###???????# #????????? | | ??????????????????????????????# #????????? | | ??????????????????????????????# #????????? | | ??????????????????????????????# #????????? | | ??????????????????????????????# #????????? | | ?????????????????????????????? ????????? | | ?????????????????????????????? ????????? | | ????????????????????????????? ???????? | | ????????????????????????????? ???????? | | ????????????????????????????# """ ??????? | | ????????????????????????????# """ ??????? | | ????????????????????????????# """ ?????? | | ????????????????????????????# ?????? | | ????????????????????????????# ??? ????? | | ????????????????????????????+ ????##????? | | ????????????????????????????# ??????????? | | ????????????????????????????# ??????????? | +----------------------------------------------------+ Best States ------------- Heat Dissipation 41 Energy Generation 10 Energy Capacity 375 Matter Stores 300 Matter Capacity 300 Sight Range 16 Terrain Scan Density 10 Propulsion Shielding 33 Utility Shielding 33 Evasion (%) 63 Recoil Reduction 1 Item Schematics ----------------- None Robot Schematics ------------------ None Fabricated ------------ Nothing Repaired ---------- Nothing Studied --------- None Alien Tech Used ----------------- None Achievements -------------- Brute Force Challenges ------------ None Game ------ Seed HardenedLightAutominer Manual? 0 Play Time 00:30:25 Cumulative 8.1 hours Start 2026.03.12 @ 18:57:28 End 2026.03.12 @ 19:44:26 Sessions 1 Manual Loads 0 Difficulty Rogue Special Mode None Game No. 5 Rogue 5 Adventurer 0 Explorer 0 Win Type - Total 0 Types 0/0/0/0/0/0/0/0/0/0 Lore% 2 Gallery% 10 Achievement% 9 Wizard Run 0 Options --------- Layout 1 ASCII 1 Keyboard 1 Movement Numpad Keybinds 0 Fullscreen 1 Font 20/CogTall Map View 54x42 Zoom Use 0% Tactical HUD 1 Map Filters NONE Filters NONE Steam 1 RUN: 5423224e-c552-4645-8394-45a57c869dbb